bitfinex-derivatives/quotes_ETHF0:USTF0_20250115
["timestamp","ask_amount","ask_price","bid_price","bid_amount"]
[1736963646123,3.2078,3332.5,3331.7,7.04092994]
[1736963646314,3.2078,3332.5,3332.3,0.60013]
[1736963646509,3.2078,3333.0,3332.4,0.4896]
[1736963646716,3.2078,3333.0,3332.5,0.4472]
[1736963647019,1.96,3333.4,3332.5,1.7682]
[1736963647020,5.85246855,3332.8,3332.5,1.7682]
[1736963647318,0.60024,3331.8,3331.7,0.21471091]
[1736963647524,3.2078,3332.2,3331.2,3.2078]
[1736963647824,3.2078,3332.6,3331.4,2.92978795]
[1736963648011,0.60018,3332.2,3331.9,0.60021]
[1736963648211,0.60022,3331.9,3331.6,0.60027]
[1736963648412,0.60023,3331.9,3331.6,0.60027]
[1736963648614,3.2078,3332.2,3331.7,0.4472]
[1736963648809,0.60011,3332.6,3332.1,0.60019]
[1736963649014,4.6620426,3332.6,3331.8,3.7008]
[1736963649318,4.6620426,3332.6,3331.9,4.43035795]
[1736963649522,4.6620426,3332.6,3332.3,6.13758795]
[1736963649716,0.0620426,3332.6,3332.5,0.60012]
[1736963649911,0.60031,3331.4,3331.2,3.80815]
[1736963650115,0.60027,3331.7,3331.4,0.6003]
[1736963650319,0.60029,3331.6,3331.3,1.92132]
[1736963650518,3.2078,3331.8,3331.3,40.8]
[1736963650714,3.2078,3331.8,3331.4,1.321]
[1736963651012,3.80805,3331.8,3331.5,0.60028]
[1736963651216,0.60031,3331.4,3331.3,40.8]
[1736963651412,0.60031,3331.4,3331.0,0.60037]
[1736963651413,6.13758795,3331.4,3329.8,8.36192994]
[1736963651621,6.13758795,3331.4,3330.1,2.5892]
[1736963651622,3.2078,3330.9,3330.1,2.5892]
[1736963651923,3.2078,3330.9,3329.8,7.04092994]
[1736963651924,3.2078,3330.7,3329.9,3.2078]
[1736963652119,3.2078,3330.7,3330.0,2.92978795]
[1736963652317,0.60055,3330.1,3330.0,1.377]
[1736963652719,3.2078,3330.3,3328.4,7.04092994]
[1736963652926,3.2078,3330.3,3328.5,1.08212]
[1736963652927,0.60076,3329.0,3328.5,1.08212]
[1736963653113,3.2078,3329.0,3328.6,1.97881]
[1736963653423,0.60084,3328.5,3328.4,7.04092994]
[1736963653616,3.80864,3328.5,3328.4,7.04092994]
[1736963653816,6.38492857,3329.6,3328.4,58.97851789]
[1736963654017,3.17712857,3330.1,3329.3,2.92978795]
[1736963654018,3.2078,3330.1,3329.3,2.92978795]
[1736963654222,5.85246855,3330.5,3329.4,2.8327]
[1736963654621,5.85246855,3330.5,3329.7,6.13758795]
[1736963654822,3.2078,3331.0,3330.2,3.2078]
[1736963655127,3.2078,3331.0,3330.5,2.92978795]
[1736963655327,3.2078,3331.0,3330.9,0.6004]
[1736963655728,1.04712,3331.4,3330.9,0.6004]
[1736963655921,0.4468,3331.4,3330.7,3.2078]
[1736963656121,0.4468,3331.4,3330.8,0.60041]
[1736963656522,0.60033,3331.3,3330.9,0.6004]
[1736963656724,0.4468,3331.4,3330.8,1.437]
[1736963657232,1.04712,3331.4,3331.1,0.60037]
[1736963658319,0.4468,3331.4,3331.2,0.60034]
[1736963658525,0.4468,3331.4,3330.8,1.437]
[1736963658830,3.2078,3331.5,3330.8,1.437]
[1736963659134,3.2078,3331.5,3331.0,0.60037]
[1736963659335,0.60033,3331.3,3331.0,0.60037]
[1736963659631,0.60035,3331.2,3330.9,0.60039]
[1736963660024,0.60034,3331.3,3331.0,0.60038]
[1736963660333,0.60032,3331.4,3331.1,0.60036]
[1736963660534,3.2078,3331.5,3331.1,40.8]
[1736963661035,0.60035,3331.3,3331.1,40.8]
[1736963661235,3.80811,3331.5,3331.1,41.40035]
[1736963661435,3.8081,3331.5,3331.2,0.60034]
[1736963661635,0.60031,3331.4,3331.1,41.40036]
[1736963661836,3.80811,3331.5,3331.2,0.60035]
[1736963662134,3.2078,3331.5,3331.1,40.8]
[1736963662333,0.60031,3331.4,3331.2,0.60035]
[1736963662535,3.2078,3331.5,3331.1,40.8]
[1736963662729,3.2078,3331.5,3331.2,0.475]
[1736963663032,3.8081,3331.5,3331.2,1.07534]
[1736963663236,3.8081,3331.5,3331.2,0.475]
[1736963663237,3.2078,3331.5,3331.2,0.475]
[1736963663430,3.2078,3331.5,3331.3,0.60033]
[1736963663635,3.2078,3331.5,3331.4,0.60031]
[1736963664031,3.8081,3331.5,3331.3,0.60033]
[1736963664331,3.2078,3331.5,3331.1,40.8]
[1736963664535,0.2211,3331.9,3331.1,44.0078]
[1736963664536,3.2078,3331.9,3331.1,44.0078]
[1736963664837,3.2078,3331.9,3331.8,0.60024]
[1736963666838,3.2078,3331.9,3331.8,2.03824]
[1736963667139,3.2078,3332.4,3332.3,0.60015]
[1736963667932,3.80795,3332.4,3332.3,0.60015]
[1736963668132,0.60015,3332.3,3332.2,0.60016]
[1736963668334,3.2078,3332.4,3332.2,0.60016]
[1736963668534,3.80794,3332.4,3332.3,0.60015]
[1736963669141,3.2078,3332.4,3332.3,0.60015]
[1736963669740,3.2078,3332.8,3332.1,1.437]
[1736963669944,0.60009,3332.7,3332.2,0.60017]
[1736963670134,0.60009,3332.7,3332.6,0.6001]
[1736963670334,3.2078,3332.8,3332.7,0.60008]
[1736963670535,3.2078,3332.8,3332.3,0.4766]
[1736963670731,0.60008,3332.7,3332.6,0.6001]
[1736963670943,3.80787,3332.8,3332.7,0.60008]
[1736963671138,3.2078,3332.8,3332.7,0.60008]
[1736963671337,3.80786,3332.8,3332.7,0.60008]
[1736963671738,3.2078,3332.8,3332.3,0.4766]
[1736963672243,3.80788,3332.8,3332.3,0.4766]
[1736963672642,0.60008,3332.7,3332.6,0.60009]
[1736963673244,3.2078,3332.8,3332.3,0.4766]
[1736963673543,0.60009,3332.7,3332.6,0.60009]
[1736963673946,0.60009,3332.7,3332.1,1.437]
[1736963673947,0.60019,3332.2,3332.1,0.60018]
[1736963674244,0.60019,3332.1,3332.0,3.2078]
[1736963675046,0.60017,3332.3,3332.2,0.60016]
[1736963675247,3.2078,3332.8,3332.0,3.2078]
[1736963675443,0.60016,3332.3,3332.2,0.60016]
[1736963675747,0.60013,3332.4,3332.3,0.60013]
[1736963676639,0.60012,3332.5,3332.4,0.60012]
[1736963676840,0.60011,3332.6,3332.5,0.60011]
[1736963677241,3.2078,3332.8,3332.1,0.4646]
[1736963677446,3.80788,3332.8,3332.7,0.60008]
[1736963677847,3.2078,3332.8,3332.7,0.60008]
[1736963678041,3.2078,3332.8,3332.2,1.50043]
[1736963678249,0.60009,3332.7,3332.6,0.60008]
[1736963678447,3.80787,3332.8,3332.7,0.60008]
[1736963678647,3.2078,3332.8,3332.6,1.437]
[1736963678850,0.60008,3332.7,3332.6,1.437]
[1736963679148,0.60008,3332.7,3332.2,0.4602]
[1736963679149,0.60015,3332.3,3332.2,0.4602]
[1736963680149,3.00046,3332.7,3332.2,0.4602]
[1736963680150,3.2078,3332.8,3332.2,0.4602]
[1736963680344,0.60011,3332.7,3332.6,0.60008]
[1736963681545,0.60012,3332.5,3332.4,0.4783]
[1736963682447,3.2078,3332.8,3332.4,0.4783]
[1736963682651,0.6001,3332.7,3332.6,0.60008]
[1736963682852,0.60012,3332.6,3332.5,0.6001]
[1736963683351,3.2078,3332.8,3332.4,0.4783]
[1736963683551,3.2078,3332.8,3332.6,0.60008]
[1736963683850,0.60008,3332.7,3332.6,0.60008]
[1736963684955,3.2078,3332.8,3332.4,0.4783]
[1736963685149,3.80786,3332.8,3332.7,0.60008]
[1736963686052,3.2078,3332.8,3332.7,0.60008]
[1736963686255,3.80786,3332.8,3332.7,1.98808]
[1736963686754,3.2078,3332.8,3332.7,1.98808]
[1736963687554,3.80786,3332.8,3332.7,1.98808]
[1736963687853,3.2078,3333.2,3333.0,0.60001]
[1736963688055,0.60001,3333.2,3333.1,1.07448]
[1736963688259,0.59999,3333.3,3333.2,0.59996]
[1736963688553,3.2078,3333.6,3333.0,2.28297677]
[1736963688758,0.60001,3333.2,3333.1,1.08158]
[1736963688956,4.70763,3333.6,3333.1,0.4816]
[1736963688957,3.2078,3333.6,3333.1,0.4816]
[1736963689257,3.2078,3333.6,3333.1,0.9664]
[1736963689449,0.59997,3333.5,3333.4,0.59994]
[1736963690854,3.2078,3333.6,3333.5,0.59994]
[1736963691163,0.59991,3333.7,3333.6,0.5999]
[1736963691362,0.59989,3333.8,3333.7,0.59988]
[1736963691657,3.2078,3334.2,3333.6,0.59991]
[1736963691658,0.59992,3333.7,3333.6,0.59991]
[1736963692554,4.70736,3334.2,3333.5,1.388]
[1736963692759,0.59989,3333.8,3333.7,0.59988]
[1736963692965,3.2078,3334.2,3333.5,1.388]
[1736963693164,0.59991,3333.7,3333.6,0.5999]
[1736963693353,0.59992,3333.7,3333.6,0.59992]
[1736963693951,0.59999,3333.2,3333.1,0.4848]
[1736963694150,0.59999,3333.2,3332.6,4.28157]
[1736963694151,0.60008,3332.7,3332.6,4.28157]
[1736963694459,0.60001,3333.1,3332.8,0.60005]
[1736963694654,0.60007,3332.8,3332.7,0.60005]
[1736963694850,0.60005,3332.9,3332.8,0.60004]
[1736963695057,3.2078,3333.2,3332.6,3.6815]
[1736963695256,3.2078,3332.8,3332.6,0.4737]
[1736963695454,0.60008,3332.7,3332.6,0.4737]
[1736963695657,3.2078,3332.8,3332.6,0.4737]
[1736963695853,0.60021,3332.0,3331.9,0.00366316]
[1736963696161,3.80801,3332.0,3331.9,0.00366316]
[1736963696461,0.22,3332.5,3331.9,0.00366316]
[1736963696659,0.60019,3332.2,3332.0,0.6002]
[1736963696864,3.2078,3332.6,3332.1,2.88315677]
[1736963697157,0.60013,3332.5,3332.2,0.60015]
[1736963697356,3.2078,3333.0,3332.0,3.4270047]
[1736963697559,3.2078,3333.0,3332.4,2.9399047]
[1736963697756,3.2078,3333.0,3332.5,1.388]
[1736963698459,0.60007,3332.8,3332.6,0.60008]
[1736963698762,3.2078,3333.0,3332.6,0.4873]
[1736963698963,0.60008,3332.7,3332.6,0.4873]
[1736963699563,3.2078,3333.0,3332.6,1.0874]
[1736963699752,0.60008,3332.8,3332.6,1.0874]
[1736963700161,3.2078,3333.0,3332.6,0.4873]
[1736963700363,0.60005,3332.9,3332.8,0.60005]
[1736963700565,0.60004,3332.9,3332.7,0.60008]
[1736963700863,3.2078,3333.0,3332.9,0.60004]
[1736963701265,0.60004,3332.9,3332.7,0.60006]
[1736963701464,3.2078,3333.0,3332.6,0.4873]
[1736963701764,3.2078,3333.0,3332.9,0.60004]
[1736963702057,7.0279302,3333.7,3332.9,40.8]
[1736963702263,7.0279302,3333.7,3332.9,43.7399047]
[1736963702565,11.4070519,3333.9,3333.4,3.2078]
[1736963702566,3.2078,3333.9,3333.4,3.2078]
[1736963702756,3.2078,3333.9,3333.5,1.08683]
[1736963702757,0.59991,3333.7,3333.5,1.08683]
[1736963703064,0.59992,3333.6,3333.5,0.4869]
[1736963703768,3.2078,3333.9,3333.0,3.6776]
[1736963704064,0.59995,3333.4,3333.3,1.388]
[1736963704964,3.2078,3334.0,3333.3,1.388]
[1736963705267,0.59995,3333.4,3333.3,1.388]
[1736963705457,4.70742,3334.0,3333.3,1.98797]
[1736963705763,0.59994,3333.5,3333.3,1.98797]
[1736963706061,0.59994,3333.5,3333.4,0.59995]
[1736963706258,0.59991,3333.7,3333.5,0.59993]
[1736963706570,0.59991,3333.7,3333.6,0.59992]
[1736963706861,3.2078,3334.0,3333.3,4.3279047]
[1736963707260,3.80766,3334.0,3333.8,0.59987]
[1736963707456,0.59986,3334.0,3333.9,0.59986]
[1736963707652,3.2078,3334.4,3333.4,3.2078]
[1736963707860,3.2078,3334.4,3333.7,2.9399047]
[1736963708056,3.2078,3334.4,3333.4,3.2078]
[1736963708256,0.59985,3334.0,3333.9,0.59985]
[1736963708456,3.2078,3334.4,3333.4,3.2078]
[1736963708668,0.59982,3334.2,3334.1,0.59982]
[1736963709056,0.5998,3334.3,3334.2,0.5998]
[1736963709665,0.59978,3334.4,3334.0,0.4654]
[1736963709865,0.59979,3334.3,3334.2,0.59979]
[1736963710257,0.59979,3334.3,3334.1,40.8]
[1736963710465,0.59981,3334.2,3334.1,41.39982]
[1736963710654,0.59981,3334.2,3334.1,0.59982]
[1736963710856,0.59978,3334.4,3334.3,0.59978]
[1736963711058,0.5998,3334.3,3334.2,0.5998]
[1736963712066,0.59981,3334.2,3334.1,42.78682]
[1736963712255,1.49931,3334.7,3334.1,42.187]
[1736963712660,0.59981,3334.3,3334.2,0.5998]
[1736963712861,3.2078,3334.4,3334.0,1.8524]
[1736963713061,3.2078,3334.4,3334.0,1.387]
[1736963713062,0.59983,3334.1,3334.0,1.387]
[1736963713765,4.70726,3334.4,3334.0,1.387]
[1736963713766,3.2078,3334.4,3334.0,1.387]
[1736963713967,0.59981,3334.3,3334.2,0.5998]
[1736963714674,3.2078,3334.8,3334.0,1.387]
[1736963714868,3.2078,3334.8,3334.1,0.4527]
[1736963715064,0.59974,3334.6,3334.3,0.59979]
[1736963715269,0.59973,3334.7,3334.2,1.9794]
[1736963715572,0.59973,3334.7,3334.6,0.59974]
[1736963715960,0.59972,3334.8,3334.7,0.59971]
[1736963716162,0.59972,3334.8,3334.2,1.9794]
[1736963716163,4.70708,3334.8,3334.2,0.4799]
[1736963716463,2.9399047,3334.3,3332.9,9.98083464]
[1736963716659,2.9399047,3334.3,3333.0,0.9339]
[1736963716660,3.2078,3333.4,3333.0,0.9339]
[1736963716861,3.2078,3333.9,3333.4,0.59995]
[1736963717168,3.2078,3333.9,3333.4,2.9399047]
[1736963717864,0.59992,3333.6,3333.5,0.59992]
[1736963718260,3.2078,3333.9,3333.4,2.28162663]
[1736963718669,0.59992,3333.6,3333.5,1.95892]
[1736963718966,0.59999,3333.2,3333.1,5.48942663]
[1736963719164,0.59999,3333.2,3333.1,3.2078]
[1736963719363,3.2078,3333.5,3333.0,2.2929]
[1736963719563,0.6,3333.2,3333.0,2.2929]
[1736963719760,3.2078,3333.5,3333.0,2.2929]
[1736963719963,0.60001,3333.1,3333.0,2.89292]
[1736963720667,0.6,3333.2,3333.1,0.6]
[1736963720868,0.59998,3333.3,3333.2,0.59998]
[1736963721066,3.2078,3333.6,3333.1,2.28162663]
[1736963721369,0.60001,3333.1,3333.0,2.2929]
[1736963721572,3.2078,3333.3,3331.9,10.80566316]
[1736963721872,0.60015,3332.3,3332.2,0.468]
[1736963722073,0.60015,3332.3,3332.2,40.8]
[1736963722264,0.60021,3332.0,3331.9,0.00366316]
[1736963722464,3.80801,3332.0,3331.9,0.00366316]
[1736963722869,6.08963663,3332.0,3331.9,3.16e-06]
[1736963723062,14.36264928,3332.0,3330.6,0.9107]
[1736963723270,0.6004,3330.9,3330.8,3.64062663]
[1736963723463,0.6004,3330.9,3330.8,42.159]
[1736963723773,0.60044,3330.7,3330.6,0.4576]
[1736963723963,3.2078,3331.0,3330.5,12.162]
[1736963723964,0.60046,3330.6,3330.5,12.162]
[1736963724167,3.80826,3330.6,3330.5,40.8]
[1736963724361,0.60053,3330.2,3330.1,1.359]
[1736963724868,3.2078,3330.6,3330.1,1.359]
[1736963725075,4.44376206,3331.1,3330.1,1.95954]
[1736963725076,0.6005,3330.4,3330.1,1.95954]
[1736963725273,3.2078,3331.0,3330.1,1.359]
[1736963725476,3.2078,3331.0,3330.1,1.95954]
[1736963725778,3.2078,3331.0,3330.1,0.60055]
[1736963725971,0.60048,3330.5,3330.2,1.359]
[1736963726368,3.2078,3331.0,3330.2,1.359]
[1736963726677,3.2078,3331.0,3330.0,3.2078]
[1736963726870,0.6005,3330.4,3330.1,0.60054]
[1736963727070,0.60048,3330.5,3330.2,0.60053]
[1736963727768,3.2078,3331.0,3330.1,0.60054]
[1736963727974,0.60055,3330.1,3330.0,3.2078]
[1736963728570,3.2078,3330.5,3330.0,3.2078]
[1736963728878,0.60053,3330.3,3330.0,3.2078]
[1736963729178,3.2078,3330.5,3330.0,3.2078]
[1736963729478,0.60053,3330.2,3330.0,3.2078]
[1736963729983,3.2078,3330.5,3330.0,3.2078]
[1736963730171,3.2078,3330.5,3330.0,3.80835]
[1736963730367,0.60053,3330.2,3330.1,40.8]
[1736963730574,0.60052,3330.3,3330.1,40.8]
[1736963730775,3.2078,3330.5,3330.1,40.8]
[1736963730982,3.2078,3330.9,3330.1,40.8]
[1736963731277,3.2078,3330.9,3330.2,0.60053]
[1736963731480,0.60045,3330.7,3330.1,40.8]
[1736963731672,0.60046,3330.6,3330.3,0.6005]
[1736963732372,3.2078,3330.9,3330.1,42.16]
[1736963732578,0.60043,3330.8,3330.5,0.60046]
[1736963733076,0.60045,3330.7,3330.5,0.60046]
[1736963733277,0.60043,3330.8,3330.5,0.60046]
[1736963733480,3.2078,3330.9,3330.3,2.94281206]
[1736963733777,0.60036,3331.2,3331.0,0.60038]
[1736963734075,3.2078,3331.3,3331.0,1.36]
[1736963734282,0.60035,3331.2,3331.0,1.96037]
[1736963734578,0.60037,3331.1,3331.0,1.36]
[1736963735081,3.2078,3331.3,3331.0,1.36]
[1736963735273,0.60037,3331.1,3331.0,1.36]
[1736963736270,3.2078,3331.3,3331.0,1.36]
[1736963736468,3.2078,3331.3,3331.2,0.60035]
[1736963736877,0.6003,3331.5,3331.3,0.60032]
[1736963737378,0.6003,3331.5,3331.0,1.36]
[1736963737577,0.6003,3331.5,3331.4,0.60031]
[1736963737774,0.60024,3331.8,3331.4,1.36]
[1736963738078,0.6003,3331.5,3331.4,1.36]
[1736963738274,0.60029,3331.6,3331.5,0.6003]
[1736963738480,0.6003,3331.5,3331.4,1.36]
[1736963739182,0.60029,3331.6,3331.4,1.9603]
[1736963739375,0.6003,3331.5,3331.4,1.36]
[1736963739576,0.6003,3331.5,3331.4,1.96031]
[1736963740575,0.60029,3331.6,3331.4,1.96031]
[1736963740782,3.80803,3331.9,3331.8,0.60024]
[1736963740985,0.60024,3331.8,3331.7,0.60025]
[1736963741282,3.80803,3331.9,3331.8,0.60024]
[1736963741482,3.2078,3331.9,3331.8,0.60024]
[1736963742376,3.2078,3332.5,3331.8,3.2078]
[1736963743284,0.60017,3332.2,3332.1,0.60018]
[1736963743472,0.60016,3332.3,3332.2,0.60016]
[1736963743978,3.2078,3332.5,3331.8,3.2078]
[1736963744286,0.60016,3332.3,3332.2,0.60016]
[1736963744583,0.60014,3332.4,3332.3,0.60014]
[1736963745780,3.2078,3332.5,3332.2,1.36]
[1736963745979,3.2078,3332.5,3332.4,0.60013]
[1736963746278,3.80792,3332.5,3332.4,0.60013]
[1736963746688,3.2078,3332.5,3332.3,0.4748]
[1736963746881,0.60013,3332.4,3332.3,0.4748]
[1736963747686,0.60015,3332.3,3332.2,1.332]
[1736963748482,3.2078,3332.5,3331.8,3.2078]
[1736963748683,0.60024,3331.8,3331.7,1.332]
[1736963749986,0.60026,3331.7,3331.6,0.4601]
[1736963750779,3.2078,3331.9,3331.2,3.2078]
[1736963751087,0.6004,3330.9,3330.8,0.9724]
[1736963751992,0.6004,3330.9,3330.8,2.3044]
[1736963752288,3.2078,3331.5,3330.8,2.3044]
[1736963752490,1.50079,3331.4,3330.8,2.3044]
[1736963752790,3.2078,3331.5,3330.8,2.3044]
[1736963752986,0.60036,3331.2,3331.1,0.60035]
[1736963753187,0.60034,3331.3,3331.2,0.60034]
[1736963753581,0.60034,3331.3,3331.2,1.93234]
[1736963754189,3.2078,3331.5,3331.1,0.60035]
[1736963754391,0.60033,3331.3,3331.2,1.332]
[1736963754691,3.2078,3331.5,3330.8,0.9724]
[1736963754885,3.2078,3331.5,3330.9,1.332]
[1736963755084,0.60036,3331.2,3331.1,0.60036]
[1736963756393,0.60039,3331.0,3330.9,1.9324]
[1736963756691,0.6004,3330.9,3330.8,0.9724]
[1736963756990,0.6004,3330.9,3330.8,1.8257]
[1736963757288,0.6004,3330.9,3330.8,2.42612]
[1736963757486,3.2078,3331.5,3330.8,2.42612]
[1736963757487,3.2078,3331.5,3330.8,1.8257]
[1736963757688,3.2078,3331.5,3330.8,3.32676]
[1736963757891,0.60033,3331.4,3331.3,0.60032]
[1736963758193,3.2078,3331.5,3330.8,1.8257]
[1736963758390,0.60038,3331.1,3331.0,0.60038]
[1736963758598,0.60036,3331.2,3331.1,0.60035]
[1736963758888,0.60034,3331.3,3331.2,0.60034]
[1736963759098,3.2078,3331.5,3330.8,1.8257]
[1736963759490,0.60042,3330.8,3330.7,3.2078]
[1736963760089,0.60046,3330.6,3329.8,3.6554]
[1736963760297,0.60057,3330.0,3329.9,1.333]
[1736963760491,1.50124,3330.4,3329.8,3.6554]
[1736963760694,1.50124,3330.4,3329.9,40.8]
[1736963760893,3.2078,3330.5,3329.9,40.8]
[1736963761193,0.60056,3330.1,3329.9,40.8]
[1736963761390,3.2078,3330.5,3329.9,40.8]
[1736963761592,3.2078,3330.5,3329.9,41.40057]
[1736963761792,0.60054,3330.2,3329.9,40.8]
[1736963761994,0.60057,3330.0,3329.9,40.8]
[1736963762794,0.60057,3330.0,3329.9,41.40058]
[1736963763195,0.60057,3330.0,3329.9,40.8]
[1736963763396,0.60057,3330.0,3329.9,41.40058]
[1736963763797,0.60056,3330.1,3330.0,0.60056]
[1736963763996,3.2078,3330.1,3329.4,3.2078]
[1736963764300,0.60066,3329.5,3329.4,3.2078]
[1736963764498,0.60066,3329.5,3328.8,2.39246]
[1736963764499,4.5408,3329.5,3327.8,11.40891255]
[1736963764697,4.5408,3329.5,3327.4,19.4624725]
[1736963764698,3.80869,3328.2,3327.6,1.76129848]
[1736963764999,6.15061206,3327.7,3327.1,9.97069294]
[1736963765192,3.80887,3327.2,3327.1,9.97069294]
[1736963765602,3.80887,3327.2,3327.1,10.57149294]
[1736963765899,10.00534924,3327.2,3327.1,10.57149294]
[1736963766094,3.80887,3327.2,3327.1,10.57149294]
[1736963766297,3.2078,3327.2,3327.1,10.57149294]
[1736963766595,3.80887,3327.2,3327.1,10.57149294]
[1736963766792,3.2078,3327.2,3327.1,34.35192107]
[1736963766995,9.34764253,3327.2,3327.1,24.38122813]
[1736963767300,3.80869,3328.2,3327.7,0.60098]
[1736963767600,2.607,3328.2,3328.1,7.611]
[1736963767797,0.60085,3328.5,3328.1,10.55381206]
[1736963767992,3.2078,3328.6,3328.4,7.611]
[1736963768198,5.79139526,3328.4,3328.3,0.60087]
[1736963768401,5.79139526,3328.4,3328.3,1.388]
[1736963768601,5.79139526,3328.4,3328.3,15.8207856]
[1736963769097,5.79139526,3328.4,3327.0,3.2078]
[1736963769301,0.45991176,3327.9,3327.6,3.10249137]
[1736963769489,0.45991176,3327.9,3327.4,2.94281206]
[1736963769693,0.45991176,3328.1,3327.8,3.10249137]
[1736963769994,0.45991176,3328.1,3327.9,1.389]
[1736963769995,4.6323905,3328.0,3327.9,1.389]
[1736963770200,4.6323905,3328.0,3327.9,1.98994]
[1736963770404,4.6323905,3328.0,3327.9,52.71421697]
[1736963770699,4.6323905,3328.0,3327.9,51.32521697]
[1736963770901,0.45852759,3328.1,3327.9,52.71421697]
[1736963771106,0.45852759,3328.1,3328.0,3.10249137]
[1736963771300,0.60093,3328.0,3327.9,42.189]
[1736963771504,3.2078,3328.0,3327.9,45.29149137]
[1736963771691,3.2078,3328.0,3327.9,52.71421697]
[1736963771895,3.2078,3328.0,3327.9,52.11327697]
[1736963772499,3.2078,3328.0,3327.9,11.91421697]
[1736963772691,3.2078,3328.0,3327.9,11.31327697]
[1736963773498,3.2078,3328.0,3327.9,52.11327697]
[1736963773700,5.98051363,3328.5,3327.9,52.11327697]
[1736963773891,6.58115547,3328.5,3328.4,3.10249137]
[1736963774097,6.12358655,3328.5,3328.4,3.10249137]
[1736963774299,5.52274655,3328.5,3328.4,9.92427697]
[1736963774500,3.2078,3328.5,3328.4,9.92427697]
[1736963776502,3.80864,3328.5,3328.4,11.31327697]
[1736963776895,3.2078,3328.5,3328.4,11.91412697]
[1736963777502,3.2078,3328.5,3328.4,10.52512697]
[1736963777706,3.2078,3328.5,3328.4,11.31327697]
[1736963778003,3.2078,3328.5,3328.4,1.09417614]
[1736963778195,3.2078,3328.5,3328.4,0.49332614]
[1736963778400,3.2078,3328.5,3328.4,1.09417614]
[1736963779107,3.2078,3328.5,3328.4,0.49332614]
[1736963779307,3.2078,3328.5,3328.4,1.09417614]
[1736963779607,3.2078,3328.5,3328.4,0.49332614]
[1736963780005,3.2078,3328.5,3328.4,1.09417614]
[1736963781905,1.50155,3329.8,3328.8,0.60078]
[1736963781906,0.45847193,3328.9,3328.8,0.60078]
[1736963782100,3.66627193,3329.0,3328.8,0.60078]
[1736963782410,3.80855,3329.0,3328.8,0.60078]
[1736963782607,3.80855,3329.0,3328.7,2.94281206]
[1736963782608,3.66627193,3329.0,3328.7,2.94281206]
[1736963782813,3.6667112,3329.0,3328.8,0.60078]
[1736963783013,4.2674612,3329.0,3328.8,0.60078]
[1736963783500,3.6667112,3329.0,3328.8,0.60078]
[1736963783707,1.0596812,3328.9,3328.7,3.54360206]
[1736963783907,0.4589112,3328.9,3328.8,1.98978]
[1736963784109,4.2674712,3329.0,3328.8,1.98978]
[1736963784309,0.4589112,3328.9,3328.8,2.44388]
[1736963784717,0.45951168,3328.9,3328.8,1.8431]
[1736963785012,0.45950893,3329.0,3328.8,2.44388]
[1736963785211,0.45952005,3329.1,3328.9,0.60076]
[1736963785510,3.2078,3329.4,3329.3,0.60069]
[1736963786603,3.2078,3329.4,3329.0,2.94281206]
[1736963786809,0.60073,3329.1,3329.0,2.94281206]
[1736963787017,0.60073,3329.1,3329.0,4.33181206]
[1736963787203,0.60073,3329.1,3329.0,42.189]
[1736963787602,0.60073,3329.1,3329.0,41.40075]
[1736963787807,0.60073,3329.1,3329.0,42.189]
[1736963788608,0.60073,3329.1,3329.0,1.389]
[1736963789213,0.60069,3329.3,3329.1,0.60072]
[1736963789412,0.60071,3329.2,3329.1,0.60072]
[1736963789614,3.2078,3329.4,3329.0,4.33181206]
[1736963789814,3.2078,3329.8,3329.7,0.60062]
[1736963790017,0.59469284,3329.8,3329.7,0.60062]
[1736963790313,1.50151,3329.8,3329.2,2.94281206]
[1736963790611,1.50151,3329.8,3328.5,10.818]
[1736963790612,3.2078,3329.5,3328.8,3.84621206]
[1736963790916,1.50156,3329.7,3328.8,3.84621206]
[1736963790917,0.60076,3328.9,3328.8,3.84621206]
[1736963791121,0.60076,3328.9,3328.8,5.23521206]
[1736963791614,0.60076,3329.0,3328.9,0.60076]
[1736963792116,3.2078,3329.1,3328.8,5.23521206]
[1736963792321,3.2078,3329.1,3329.0,0.60075]
[1736963792818,0.6007,3329.3,3329.2,0.6007]
[1736963793018,0.60071,3329.2,3329.1,0.60072]
[1736963793314,5.51287732,3329.5,3328.8,5.23521206]
[1736963793525,0.60073,3329.1,3329.0,0.60074]
[1736963793915,5.51287732,3329.5,3328.8,5.23521206]
[1736963794120,0.60071,3329.3,3329.2,0.60071]
[1736963794321,0.60068,3329.4,3329.3,0.60068]
[1736963794617,5.51287732,3329.5,3328.8,5.23521206]
[1736963794822,0.60071,3329.3,3329.2,0.60071]
[1736963795321,0.60068,3329.4,3329.3,0.60069]
[1736963795722,0.60071,3329.2,3329.1,0.60071]
[1736963796224,0.60071,3329.2,3329.1,41.40071]
[1736963796519,3.2078,3329.5,3329.4,0.60067]
[1736963797720,3.2078,3329.5,3329.3,2.88353135]
[1736963797928,3.2078,3329.5,3329.4,0.60067]
[1736963798623,5.51287732,3330.0,3329.9,0.60058]
[1736963798822,5.51287732,3330.0,3329.9,4.93039206]
[1736963799020,2.30507732,3330.0,3329.9,4.93039206]
[1736963799820,2.30507732,3330.2,3330.1,0.60055]
[1736963801625,0.6005,3330.4,3330.3,0.60051]
[1736963801926,3.80829,3330.5,3330.4,0.60049]
[1736963802113,3.2078,3330.5,3330.3,2.94281206]
[1736963802314,3.2078,3330.5,3329.9,2.94281206]
[1736963802513,0.60058,3329.9,3329.8,1.387]
[1736963802927,0.60067,3329.5,3329.4,0.60067]
[1736963803117,0.60064,3329.6,3329.5,1.387]